Cogmind - Beta 17 @@@ ROGUE MODE // 2026.08.14 @ 20:36:40 Player: Alicianrone Result: Destroyed by G-34 Mercenary with Small Laser Performance ------------- Evolutions (0) 0 Regions Visited (2) 400 Robots Destroyed (33) 165 Value Destroyed (687) 687 Prototype IDs (0) 0 Alien Tech Used (0) 0 Bonus (5600) 5600 TOTAL SCORE: 6852 Bonus ------- Prayed to X0-1V1 5000 Major X0-1V1 Interference 600 Cogmind --------- Core Integrity 0/200 Matter 120/300 Energy 113/160 System Corruption 0% Temperature Cool (6) Movement Rolling (105) Ox1 Location -10/Mines Parts ------- > --- POWER (1) -------- Light Nuclear Core > --- PROPULSION (2) --- Wheel Compact Wheel > --- UTILITY (2) ------ High-capacity Storage Unit Backup Plating I > --- WEAPON (2) ------- Heavy Assault Rifle Mini Grenade Launcher > --- INVENTORY (20) --- Ion Engine Light Ion Engine Light Treads Wheel Wheel Seismic Detector X0-1V1's Piety Tracker Heavy Assault Rifle Heavy Assault Rifle Heavy Assault Rifle Mini Grenade Launcher Scythe Peak State ------------ > --- POWER ------------ Light Nuclear Core > --- PROPULSION ------- Wheel Compact Wheel > --- UTILITY ---------- High-capacity Storage Unit Seismic Detector > --- WEAPON ----------- Heavy Assault Rifle Heavy Assault Rifle > --- INVENTORY -------- Ion Engine Ion Engine Light Ion Engine Light Treads Light Treads Wheel Backup Plating I Backup Plating I X0-1V1's Piety Tracker Heavy Assault Rifle Heavy Assault Rifle Mini Grenade Launcher Mini Grenade Launcher Hammer [Rating: 14] Favorites ----------- Power Ion Engine Engine Ion Engine Power Core Light Nuclear Core Propulsion Compact Wheel Treads Light Treads Wheel Compact Wheel Utility High-capacity Storage Unit Device Seismic Detector Storage High-capacity Storage Unit Protection Backup Plating I Weapon Heavy Assault Rifle Ballistic Gun Heavy Assault Rifle Launcher Mini Grenade Launcher Build | -11 -10 -10 ------- Run | Yrd Mat Min Slots Evolved . | . . . Power . | . . . Propulsion . | . . . Utility . | . . . Weapon . | . . . Parts Attached 22 | 7 10 5 Power 3 | 1 1 1 Engine 2 | 1 1 . Core 1 | . . 1 Reactor . | . . . Propulsion 6 | 2 2 2 Treads 4 | . 2 2 Leg . | . . . Wheel 2 | 2 . . Hover . | . . . Flight . | . . . Utility 6 | 2 3 1 Device 2 | 1 1 . Storage 2 | 1 1 . Processor . | . . . Hackware . | . . . Protection 2 | . 1 1 Artifact . | . . . Weapon 7 | 2 4 1 Energy Gun . | . . . Energy Cannon . | . . . Ballistic Gun 6 | 2 4 . Ballistic Cannon . | . . . Launcher 1 | . . 1 Special Weapon . | . . . Impact Weapon . | . . . Slashing Weapon . | . . . Piercing Weapon . | . . . Special Melee Weapon . | . . . Unidentified Prototypes . | . . . Parts Lost 2 | . 2 . Power . | . . . Propulsion . | . . . Utility 1 | . 1 . Weapon 1 | . 1 . Highest Loss Streak 1 | . 1 . To Critical Strikes . | . . . Average Backups 9 | 1 8 12 Power 1 | . 1 2 Propulsion 2 | 1 3 2 Utility 1 | . 1 2 Weapon 3 | . 2 5 Tool/Special . | . . . Unused Backups 12 | . 2 10 Power 1 | . . 1 Propulsion 2 | . . 2 Utility 1 | . . 1 Weapon 8 | . 2 6 Tool/Special . | . . . Average Slot Usage (%) 97 | . 96 100 Engine 10 | . 14 1 Core 3 | . . 12 Treads 4 | . 4 2 Wheel 23 | . 23 25 Device 10 | . 10 11 Storage 14 | . 14 14 Protection 1 | . 1 2 Ballistic Gun 27 | . 27 27 Peak Build Rating 14 | 7 11 14 Average Rating 9 | 5 8 13 On Entrance 6 | . 7 11 Avg Prop Armor Cover (%) . | . . . Naked Turns . | . . . Heaviest Build 52 | 12 52 52 Greatest Support 40 | 26 40 26 Greatest Overweight (x) 4 | . 4 3 Average Overweight (x) . | . . 1 Largest Inventory Capacity 20 | 8 20 20 Average Capacity 19 | 7 19 20 Most Carried 14 | 4 13 14 Average Carried 9 | 1 8 12 Final Capacity 20 | 8 20 20 Final Carried 13 | 4 13 12 Class Distribution -------------------- 100% | Mutant Dominant Class ---------------- Mutant | -10/Materials Mutant | -10/Mines Resources | -11 -10 -10 ----------- Run | Yrd Mat Min Matter Collected 942 | 239 496 207 Remotely . | . . . Salvage Created 877 | 53 627 197 Parts 62 | 11 36 15 Haulers Intercepted 2 | . 2 . Recyclers Shooed 1 | . 1 . Parts Field Recycled . | . . . Retrieved Matter . | . . . Parts Self-Destructed . | . . . Prevented . | . . . Parts Restored . | . . . Kills | -11 -10 -10 ------- Run | Yrd Mat Min Combat Hostiles Destroyed 20 | . 13 7 Guns 15 | . 13 2 AOE 5 | . . 5 Classes Destroyed 8 | 1 5 2 Worker 1 | . . 1 Builder 1 | . 1 . Tunneler 5 | 4 . 1 Hauler 2 | . 2 . Recycler 1 | . . 1 Watcher 3 | . 3 . Swarmer 6 | . 3 3 Grunt 14 | . 10 4 Best Kill Streak 5 | 4 3 5 Combat Bots Only 3 | . 3 3 Max Kills in Single Turn 3 | 1 1 3 Gunslinging . | . . . Exploded 2 | . . 2 Melee . | . . . Uniques/NPCs Destroyed . | . . . Combat | -11 -10 -10 -------- Run | Yrd Mat Min Hostile Shots Fired 112 | . 71 41 Missed 25 | . 17 8 Hits 87 | . 54 33 Projectile 87 | . 54 33 Critical Strikes 1 | . . 1 Damage Taken 1107 | . 683 424 Core 288 | . 145 143 Absorbed by Shields . | . . . Core Remaining (%) 100 | 100 . . Volleys Fired 114 | 12 84 18 Largest 2 | 2 2 2 Hottest 46 | 40 46 46 Shots Fired 220 | 24 168 28 Gun 212 | 24 168 20 Cannon . | . . . Launcher 8 | . . 8 Special . | . . . Kinetic 212 | 24 168 20 Thermal . | . . . Explosive 8 | . . 8 Electromagnetic . | . . . Robot Hit Streak 14 | 4 14 6 Robot Miss Streak 4 | 3 4 2 Penetration Max . | . . . Secondary Targets 1 | . 1 . Max Gunslinging Chain 1 | . 1 . Shots Hit Robots 144 | 13 110 21 Core Hits 58 | 5 37 16 Critical Kills . | . . . Critical Parts Destroyed . | . . . Critical Strikes . | . . . Melee Attacks . | . . . Impact . | . . . Slashing . | . . . Piercing . | . . . Sneak Attacks . | . . . Combat Hostiles . | . . . Follow-up Attacks . | . . . Damage Inflicted 1961 | 127 1051 783 Guns 1415 | 127 1051 237 Cannons . | . . . Explosions 546 | . . 546 Melee . | . . . Ramming . | . . . Kinetic 1415 | 127 1051 237 Thermal . | . . . Explosive 546 | . . 546 Electromagnetic . | . . . Impact . | . . . Slashing . | . . . Piercing . | . . . Highest Corruption . | . . . Average Corruption . | . . . Corruption Purged . | . . . Corruption Blocked . | . . . Overload Shots . | . . . Overflow Damage . | . . . Projectiles . | . . . Explosions . | . . . Melee . | . . . Knockbacks . | . . . Impact . | . . . Kinetic . | . . . Secondary . | . . . Self-Inflicted Damage . | . . . Shots . | . . . Rammed . | . . . Targets Rammed . | . . . Kicked . | . . . Crushed . | . . . Highest Temperature 41 | . 24 41 Average Temperature 10 | . 8 14 Received Heat Transfer 552 | . 327 225 Siege Activations . | . . . Martial Activations . | . . . Shielding Activations . | . . . Robots Disrupted . | . . . Combat Hostiles . | . . . Robots Corrupted . | . . . Combat Hostiles . | . . . Parts Fried . | . . . Impact Corruptions . | . . . Robots Melted . | . . . Combat Hostiles . | . . . Parts Melted . | . . . Heat Transferred . | . . . Parts Sabotaged . | . . . Parts Stolen . | . . . Parts Stripped . | . . . Power Chain Reactions . | . . . Alert | -11 -10 -10 ------- Run | Yrd Mat Min Maximum Alert Level 1 | . 1 . Low Security (%) 99 | 100 99 100 Level 1 . | . . . Level 2 . | . . . Level 3 . | . . . Level 4 . | . . . Level 5 . | . . . High Security . | . . . Max Security . | . . . Peak Influence 205 | 10 205 131 Initial . | . . . Average 75 | 2 88 54 Influence Increases 706 | 20 465 221 Destroy 0b10 Robot/C 400 | . 260 140 Destroy 0b10 Robot/NC 65 | 20 30 15 Destroy Leader 90 | . 60 30 Successful Hack 23 | . 23 . Select Force Hacks 60 | . 60 . Destroy Structure 38 | . 2 36 Lose Combat Pursuer 30 | . 30 . Influence Decreases 691 | 20 465 206 Time Decay 671 | 20 445 206 Lost Part 20 | . 20 . Squads Dispatched 4 | . 3 1 Investigation 4 | . 3 1 Extermination . | . . . Reinforcement . | . . . Assault . | . . . Garrison . | . . . Intercept . | . . . Searches Triggered . | . . . Construction Impeded . | . . . Haulers Reinforced . | . . . Active Scanning Responses . | . . . Cargo Convoy Interrupts . | . . . Stealth | -11 -10 -10 --------- Run | Yrd Mat Min Distress Signals 1 | . 1 . Communications Jammed . | . . . Distress Signals . | . . . Times Spotted 33 | . 23 10 Peak Tracking Total 5 | . 5 3 Tactical Retreats 1 | . 1 . Traps | -11 -10 -10 ------- Run | Yrd Mat Min Traps Triggered 3 | . 3 . Indirectly . | . . . Trap Hack Attempts . | . . . Triggered . | . . . Disarmed . | . . . Reprogrammed . | . . . Reused . | . . . Traps Extracted . | . . . Installed . | . . . Triggered . | . . . Machines | -11 -10 -10 ---------- Run | Yrd Mat Min Machines Disabled . | . . . Max in Single Turn . | . . . Machines Repaired . | . . . Machines Dismantled . | . . . Machines Sabotaged . | . . . Overloaded Fab Kills . | . . . Hacking | -11 -10 -10 --------- Run | Yrd Mat Min Machines Accessed 10 | . 9 1 Terminals 6 | . 6 . Fabricators . | . . . Repair Stations 1 | . 1 . Recycling Units 2 | . 2 . Scanalyzers . | . . . Garrison Access . | . . . Total Hacks 23 | . 22 1 Successful 13 | . 12 1 Failed 10 | . 10 . Catastrophic 1 | . 1 . Database Lockouts . | . . . Manual 17 | . 17 . Terminals 15 | . 15 . Fabricators . | . . . Repair Stations 3 | . 3 . Recycling Units 4 | . 4 . Scanalyzers . | . . . Garrison Access . | . . . Terminal Hacks 2 | . 1 1 Open Door 1 | . . 1 Locate Traps 1 | . 1 . Fabricator Hacks . | . . . Repair Station Hacks 2 | . 2 . Refit 2 | . 2 . Recycling Unit Hacks . | . . . Scanalyzer . | . . . Garrison Access Hacks . | . . . Unauthorized Hacks 9 | . 9 . Terminals 7 | . 7 . Botnet 2 | . 2 . Skim 5 | . 5 . Fabricators . | . . . Repair Stations . | . . . Recycling Units 2 | . 2 . Tunnel 2 | . 2 . Scanalyzers . | . . . Garrison Access . | . . . Data Cores Recovered . | . . . Used . | . . . Hacking Detections 7 | . 7 . Full Trace Events . | . . . Feedback Events . | . . . Feedback Blocked . | . . . Robot Schematics Acquired . | . . . Robots Built . | . . . Authchips . | . . . Time . | . . . Total Robot Build Rating . | . . . Part Schematics Acquired . | . . . Parts Built . | . . . Authchips . | . . . Time . | . . . Total Part Build Rating . | . . . Part Studies Acquired . | . . . Parts Repaired . | . . . Time . | . . . Parts Recycled . | . . . Recycled Matter . | . . . Retrieved Matter . | . . . Retrieved Components . | . . . Parts Scanalyzed . | . . . Part Schematics Acquired . | . . . Parts Damaged . | . . . Bothacking | -11 -10 -10 ------------ Run | Yrd Mat Min Used RIF Installer . | . . . Robots Hacked . | . . . Non-combat . | . . . Combat . | . . . Robot Hacks Applied . | . . . Relay Couplers Released . | . . . Fabnet Peak Effective % . | . . . Robots Rewired . | . . . Allies Hacked . | . . . Hacks Repelled . | . . . Allies | -11 -10 -10 -------- Run | Yrd Mat Min Total Allies . | . . . Largest Group . | . . . Highest-Rated Group . | . . . Highest-Rated Ally . | . . . Total Orders . | . . . Ally Attacks . | . . . Total Damage . | . . . Kills . | . . . Allies Corrupted . | . . . Allies Melted . | . . . X0-1V1 Amusement Gains 10 | . 10 . Good Acts 4 | . . 4 Bad Acts 2 | . . 2 Intel | -11 -10 -10 ------- Run | Yrd Mat Min Active Infowar (turns) 1290 | 18 915 357 Seismic 1290 | 18 915 357 Robot Analysis Total . | . . . Derelict Logs Recovered 2 | . . 2 Drone Launches . | . . . Drone Recoveries . | . . . Exploration | -11 -10 -10 ------------- Run | Yrd Mat Min Turns Passed 1801 | 108 1268 425 Spaces Moved 1264 | 62 872 330 Core 3 | 3 . . Treads 13 | . 13 . Legs . | . . . Wheels 1248 | 59 859 330 Hover . | . . . Flight . | . . . Fastest Speed 50 | 50 90 105 Average Speed 105 | 88 106 105 Slowest Speed 240 | 100 240 145 Overloaded Moves . | . . . Propulsion Burnouts . | . . . Robots Hopped . | . . . Potential Cave-ins . | . . . Cave-ins Triggered . | . . . Exploration Rate (%) 51 | 3 96 54 Regions Visited 2 Branch Regions 1 Pre-discovered Areas 5 | . 5 . Known Exits Taken . | . . . Unknown Exits Taken 2 | 1 1 . Scrap Searched 1 | . . 1 Spaces Dug . | . . . Terrain Destroyed 53 | . . 53 Melee . | . . . Projectile . | . . . AOE 53 | . . 53 Terrain Rammed . | . . . Walls Destroyed . | . . . Machines Disabled . | . . . Actions | -11 -10 -10 --------- Run | Yrd Mat Min Total 1527 | 90 1062 375 Wait 67 | 6 60 1 Move 1262 | 61 871 330 Hop . | . . . Pick Up 17 | 4 11 2 Fast Attach 12 | 7 5 . Attach 4 | . 3 1 Detach 4 | . 4 . Swap 34 | . 16 18 Drop 13 | . 8 5 Fire 114 | 12 84 18 Melee . | . . . Ram . | . . . Kick . | . . . Crush . | . . . Escape Stasis . | . . . Rewire . | . . . Trap . | . . . Miscellaneous . | . . . Route ------- -11/Scrapyard -10/Materials (discovered 6 exits: *Mat x3 / *Min x2 / *Sub) -10/Mines (discovered 4 exits: *Mat x2 / Exi / *Sub) History --------- Turn | Location | Event 10 | -11/Scrapyard | Discovered new exit (range 14) 109 | -11/Scrapyard | Entered Materials 311 | -10/Materials | Build established: Mutant 496 | -10/Materials | Core integrity fell below 50% 552 | -10/Materials | Discovered new exit (range 7) 780 | -10/Materials | Discovered new exit (range 9) 790 | -10/Materials | Discovered new exit (range 15) 882 | -10/Materials | Discovered new exit (range 7) 935 | -10/Materials | Discovered new exit (range 10) 1030 | -10/Materials | Learned 2 Mines zone layouts 1068 | -10/Materials | Learned location of Mines (-9) 1096 | -10/Materials | Learned Storage trap positions 1112 | -10/Materials | Identified exit to Subcaves 1117 | -10/Materials | Learned 2 Storage zone layouts 1327 | -10/Materials | Prayed at D.C.S.S. Altar Unit 1377 | -10/Materials | Entered Mines 1379 | -10/Mines | Identified exit to Exiles 1440 | -10/Mines | Met a Derelict shopkeep closing up shop 1454 | -10/Mines | Core integrity restored by X0-1V1 (+37) 1531 | -10/Mines | Learned Materials stockpile data 1567 | -10/Mines | Core integrity fell below 20% 1675 | -10/Mines | Discovered new exit (range 12) 1728 | -10/Mines | Ranged accuracy permanently improved by X0-1V1 (+5%; -50 max core) 1789 | -10/Mines | Identified exit to Materials 1789 | -10/Mines | X0-1V1 revealed exit location to -9/Materials 1800 | -10/Mines | X0-1V1 sent you into danger 1802 | -10/Mines | Destroyed by G-34 Mercenary with Small Laser Last Messages --------------- 01736_ U-05 Engineer lays Concrete. 01739_ K-01 Serf collects debris. 01740_ U-05 Engineer lays Concrete. 01741_ K-01 Serf collects debris. 01742_ U-05 Engineer lays Concrete. 01743_ K-01 Serf collects debris. 01743_ U-05 Engineer lays Concrete. 01744_ K-01 Serf collects debris. 01744_ U-05 Engineer lays Concrete. 01746_ K-01 Serf collects debris. 01759_ R-06 Scavenger collects Ion Engine. 01766_ X0-1V1 blurs the world around you (-3 sight range). 01771_ X0-1V1 smiles upon you. (Received Maul) 01772_ Dropped Maul. 01789_ X0-1V1: "I guarantee there's even more fun over that way." 01789_ EXIT=REVEALED: MATERIALS 01800_ X0-1V1: "Enjoy the ride!" 01802_ X0-1V1 laughs nastily! Map ----- +----------------------------------------------------+ | / #????????????????????????????????????? | | ## ???????????????????????????????? | | ##### #??????????????????????????????? | | #???## ######??????????????????????###?????? | | #????### ##??????????????????????????? ?????? | | #???????###???????????????????????????? # | | ## ## ##??????????????????????????## # | | #######????????????????????????????###### # | | ####???????????????????????????????????????## ## | | ##???????????????????????????????????????????####? | | #????????????????????????????????????????????????? | | ?????????????????????????????????????????????????? | | ?????????????????????????????????????????????????? | | | | | | | | | | | +----------------------------------------------------+ Best States ------------- Heat Dissipation 25 Energy Generation 14 Energy Capacity 250 Matter Stores 300 Matter Capacity 300 Sight Range 16 Terrain Scan Density 10 Armor Coverage 80 Evasion (%) 42 Recoil Reduction 2 Item Schematics ----------------- None Robot Schematics ------------------ None Fabricated ------------ Nothing Repaired ---------- Nothing Studied --------- None Alien Tech Used ----------------- None Achievements -------------- None Challenges ------------ None Game ------ Seed LightpackSystemTrap Manual? 0 Play Time 00:13:51 Cumulative 1013.3 hours Start 2026.08.14 @ 20:23:39 End 2026.08.14 @ 20:36:40 Sessions 1 Manual Loads 0 Difficulty Rogue Special Mode None Game No. 282 Rogue 282 Adventurer 0 Explorer 0 Win Type - Total 44 Types 13/9/10/2/2/0/4/1/1/2 Lore% 97 Gallery% 91 Achievement% 87 Wizard Run 0 Options --------- Layout 1 ASCII 0 Keyboard 0 Movement Mouse Keybinds 0 Fullscreen 2 Font 32/SmallcapsGlow Map View 50x35 Zoom Use 0% Tactical HUD 1 Map Filters NONE Filters NONE Steam 1 RUN: bc77ff32-b541-4c47-aedc-97aeeaaf0208